bitfinex-derivatives/quotes_SOLF0:USTF0_20250413
["timestamp","ask_amount","ask_price","bid_price","bid_amount"]
[1744550958035,7.7706,128.73,128.7,0.04934876]
[1744550958234,7.7715,128.71,128.7,0.04934876]
[1744550959631,38.45661435,128.74,128.7,0.04934876]
[1744550960033,7.7706,128.73,128.7,7.82144876]
[1744550960938,7.7711,128.72,128.7,0.04934876]
[1744550961139,38.45661435,128.74,128.7,0.04934876]
[1744550962141,38.45661435,128.74,128.72,7.7706]
[1744550963230,38.45661435,128.74,128.7,0.04934876]
[1744550963740,0.05661435,128.74,128.7,0.04934876]
[1744550963941,0.05661435,128.74,128.73,7.7703]
[1744550965949,37.72,128.77,128.76,7.7685]
[1744550966145,37.72,128.8,128.76,7.7685]
[1744550966347,37.72,128.8,128.72,1.9996]
[1744550967048,45.4861,128.8,128.77,7.7677]
[1744550967445,45.54422804,128.8,128.77,7.7677]
[1744550967753,37.77812804,128.8,128.78,7.7673]
[1744550968248,37.77812804,128.8,128.78,7.82199096]
[1744550968451,0.05812804,128.8,128.78,0.05469096]
[1744550968847,0.05812804,128.8,128.79,7.7667]
[1744550969749,0.05812804,128.8,128.78,0.05469096]
[1744550970753,0.05812804,128.8,128.78,7.82189096]
[1744550970954,0.05812804,128.8,128.78,0.05469096]
[1744550971354,37.7,128.79,128.78,0.05469096]
[1744550972350,0.05812804,128.8,128.78,7.82159096]
[1744550972550,0.05812804,128.8,128.78,0.05469096]
[1744550972949,0.05812804,128.8,128.79,7.7667]
[1744550973156,0.05812804,128.8,128.78,0.05469096]
[1744550973756,0.05812804,128.8,128.78,7.82169096]
[1744550974254,0.05812804,128.8,128.79,7.7667]
[1744550976258,0.05812804,128.8,128.78,7.82179096]
[1744550977361,7.82422804,128.8,128.78,0.05469096]
[1744550980058,7.7667,128.79,128.78,0.05469096]
[1744550980258,0.05812804,128.8,128.78,0.05469096]
[1744550981360,7.82452804,128.8,128.78,0.05469096]
[1744550981761,0.05812804,128.8,128.78,0.05469096]
[1744550981957,7.7667,128.79,128.78,0.05469096]
[1744550983160,0.05812804,128.8,128.72,1.9996]
[1744550983459,36.76,128.79,128.72,9.7702]
[1744550983760,7.7691,128.75,128.72,9.7702]
[1744550984258,7.82098314,128.75,128.72,9.82410014]
[1744550986864,0.05188314,128.75,128.72,0.05390014]
[1744550987465,7.77,128.74,128.72,0.05390014]
[1744550988462,7.7703,128.73,128.72,0.05390014]
[1744550989565,7.77,128.74,128.72,0.05390014]
[1744550991767,7.7703,128.73,128.72,0.05390014]
[1744550992066,0.05188314,128.75,128.72,0.05390014]
[1744550992266,36.76,128.74,128.72,0.05390014]
[1744550992463,44.5302,128.74,128.72,0.05390014]
[1744550992663,36.76,128.74,128.72,0.05390014]
[1744550993161,44.53,128.74,128.72,0.05390014]
[1744550994364,36.76,128.74,128.72,7.82470014]
[1744550995271,44.5298,128.74,128.72,7.82470014]
[1744550998571,36.76,128.74,128.72,7.82470014]
[1744550998771,0.05188314,128.75,128.72,0.05390014]
[1744550998976,36.78,128.77,128.72,0.05390014]
[1744550999672,44.5479,128.77,128.72,0.05390014]
[1744550999867,44.5479,128.77,128.75,7.7688]
[1744551000069,36.78,128.77,128.69,38.8316]
[1744551000269,36.83609156,128.77,128.75,0.05808057]
[1744551000573,36.83262594,128.77,128.76,7.7685]
[1744551000774,36.83262594,128.77,128.75,0.05270285]
[1744551002070,44.60082594,128.77,128.75,0.05270285]
[1744551002276,36.83262594,128.77,128.75,0.05270285]
[1744551002976,0.05262594,128.77,128.76,7.7685]
[1744551004178,36.78,128.82,128.79,7.7667]
[1744551004477,36.78,128.82,128.76,4.1227]
[1744551004676,36.78,128.82,128.81,7.7655]
[1744551006080,0.05128422,128.83,128.82,7.7649]
[1744551007476,44.5221,128.87,128.83,7.7637]
[1744551008480,7.7625,128.86,128.83,7.7637]
[1744551008682,7.81574648,128.86,128.84,0.05508733]
[1744551008979,7.7639,128.85,128.84,0.05508733]
[1744551009181,0.05324648,128.86,128.78,2.1136]
[1744551009379,1.76,128.86,128.74,2.1643]
[1744551009581,3.6784,128.86,128.75,2.1136]
[1744551010380,0.05459434,128.82,128.79,0.05063809]
[1744551010575,44.58059434,128.82,128.79,0.05063809]
[1744551011680,36.81459434,128.82,128.79,0.05063809]
[1744551012083,36.81459434,128.82,128.79,7.81813809]
[1744551012285,44.58039434,128.82,128.79,7.81813809]
[1744551013089,44.58039434,128.82,128.79,0.05063809]
[1744551014986,36.81459434,128.82,128.64,468.3267]
[1744551015287,36.76,128.82,128.71,6.1128]
[1744551015486,7.7678,128.79,128.76,7.769]
[1744551015687,36.76,128.82,128.71,6.1128]
[1744551015887,36.76,128.82,128.71,7.46436129]
[1744551016091,7.7666,128.81,128.77,7.7684]
[1744551016285,0.05708655,128.78,128.77,7.7684]
[1744551016888,0.05708655,128.78,128.76,7.82620486]
[1744551017190,0.05708655,128.78,128.76,0.05720486]
[1744551018191,0.05708655,128.78,128.77,7.7687]
[1744551018892,0.05708655,128.78,128.76,0.05720486]
[1744551019497,7.82548655,128.78,128.76,0.05720486]
[1744551019991,0.05708655,128.78,128.76,0.05720486]
[1744551020289,0.05708655,128.78,128.76,7.82640486]
[1744551020898,0.05708655,128.78,128.76,0.05720486]
[1744551020899,7.82518655,128.78,128.76,0.05720486]
[1744551021093,0.05708655,128.78,128.76,0.05720486]
[1744551021393,7.82548655,128.78,128.76,0.05720486]
[1744551022198,0.05708655,128.78,128.76,7.82650486]
[1744551023091,0.05708655,128.78,128.77,7.7687]
[1744551026593,36.76,128.82,128.8,7.7668]
[1744551026792,36.76,128.82,128.77,4.0264]
[1744551026988,36.76,128.82,128.8,7.7663]
[1744551027698,36.81942268,128.82,128.8,7.82347487]
[1744551028194,36.81942268,128.82,128.81,7.7663]
[1744551028594,0.05942268,128.82,128.81,7.7663]
[1744551029799,35.4,128.85,128.83,7.7649]
[1744551031000,0.05239556,128.85,128.83,0.05762128]
[1744551031501,0.05239556,128.85,128.84,7.7645]
[1744551031699,72.23793781,128.94,128.83,0.05762128]
[1744551031892,72.23793781,128.94,128.83,4.0314]
[1744551032500,7.7582,128.95,128.83,4.0314]
[1744551032998,0.04915659,128.9,128.88,0.05511719]
[1744551033199,35.38,128.96,128.88,0.05511719]
[1744551033397,35.38,128.96,128.87,35.38]
[1744551033702,43.1372,128.96,128.93,7.759]
[1744551033897,35.38,128.96,128.87,35.38]
[1744551034099,72.23793781,128.97,128.87,35.38]
[1744551034299,72.23793781,128.97,128.96,7.7572]
[1744551035705,0.04350855,128.98,128.97,7.7566]
[1744551036305,0.04350855,128.98,128.95,0.05559948]
[1744551038104,0.04350855,128.98,128.97,7.7566]
[1744551038805,35.36,129.03,128.99,7.7552]
[1744551039102,35.36,129.03,128.95,35.36]
[1744551039406,35.36,129.03,129.0,7.7547]
[1744551040103,35.36,129.03,129.0,7.80605554]
[1744551040304,43.113,129.03,129.0,0.05135554]
[1744551040501,35.36,129.03,129.0,0.05135554]
[1744551040906,43.12,129.03,128.94,7.7579]
[1744551041108,35.36,129.03,128.92,4.1419]
[1744551041407,7.7556,128.99,128.95,7.7575]
[1744551041607,43.1156,128.99,128.95,7.7575]
[1744551041909,0.05113797,128.98,128.96,0.05084055]
[1744551042410,0.05113797,128.98,128.96,7.80804055]
[1744551042806,0.05113797,128.98,128.96,0.05084055]
[1744551043007,7.80743797,128.98,128.96,0.05084055]
[1744551043508,7.7566,128.97,128.96,0.05084055]
[1744551044407,7.80743797,128.98,128.96,0.05084055]
[1744551044907,0.05113797,128.98,128.96,0.05084055]
[1744551045107,7.7566,128.97,128.96,0.05084055]
[1744551046111,7.7579,128.95,128.89,37.3929]
[1744551046310,34.54,128.95,128.89,2.0329]
[1744551046608,34.54,128.95,128.89,7.7611]
[1744551046909,7.7595,128.93,128.89,7.7611]
[1744551047112,34.54,128.95,128.83,1.967]
[1744551047314,7.7609,128.9,128.83,1.967]
[1744551047505,7.7609,128.9,128.88,0.05896176]
[1744551047714,0.05594323,128.88,128.86,7.7629]
[1744551047916,0.05594323,128.88,128.83,1.967]
[1744551048214,0.05594323,128.88,128.86,0.05519463]
[1744551048414,0.05594323,128.88,128.87,7.7627]
[1744551048720,0.05594323,128.88,128.86,0.05519463]
[1744551049321,0.05594323,128.88,128.86,7.81819463]
[1744551049622,0.05594323,128.88,128.86,0.05519463]
[1744551050421,0.05594323,128.88,128.87,7.7627]
[1744551051722,34.54,128.91,128.86,0.05519463]
[1744551051723,34.56,128.94,128.86,0.05519463]
[1744551051916,34.56,128.94,128.83,361.31717168]
[1744551052117,34.56,128.94,128.9,7.7604]
[1744551052317,34.56,128.94,128.86,34.56]
[1744551052517,34.56,128.94,128.83,395.87717168]
[1744551052717,0.04625286,128.91,128.89,0.05358488]
[1744551053416,7.80665286,128.91,128.89,0.05358488]
[1744551053616,0.04625286,128.91,128.89,0.05358488]
[1744551053823,34.56,128.9,128.89,0.05358488]
[1744551054020,42.3209,128.9,128.89,0.05358488]
[1744551054718,7.80675286,128.91,128.89,0.05358488]
[1744551054925,34.56,128.9,128.89,0.05358488]
[1744551055625,34.56,128.9,128.89,7.81508488]
[1744551055825,34.56,128.9,128.89,0.05358488]
[1744551056326,42.3209,128.9,128.89,0.05358488]
[1744551057326,7.7615,128.89,128.86,7.7629]
[1744551058220,34.56,128.9,128.84,7.764]
[1744551058524,34.56,128.9,128.86,0.05914608]
[1744551058724,0.05486862,128.88,128.86,0.05914608]
[1744551060129,0.05486862,128.88,128.87,7.7627]
[1744551060425,34.56,128.93,128.86,0.05914608]
[1744551060618,34.56,128.93,128.91,7.7598]
[1744551060822,34.56,128.93,128.86,2.1411]
[1744551061422,0.04496912,128.91,128.88,0.05917505]
[1744551062122,0.04496912,128.91,128.9,7.7609]
[1744551062323,34.56,128.96,128.89,2.1664]
[1744551062523,34.56,128.96,128.89,36.7264]
[1744551063427,7.7581,128.95,128.91,7.81386252]
[1744551063627,34.56,128.96,128.91,0.05416252]
[1744551063927,42.3176,128.96,128.93,7.759]
[1744551065828,34.56,128.96,128.94,7.7583]
[1744551066328,34.56,128.96,128.94,7.81044716]
[1744551066626,34.56,128.96,128.95,7.7578]
[1744551066832,3.8351,129.01,128.94,0.05214716]
[1744551066833,34.56,128.99,128.94,0.05214716]
[1744551067733,7.7563,128.98,128.95,7.7578]
[1744551068033,34.56,128.99,128.94,0.05214716]
[1744551068332,42.3159,128.99,128.95,7.7575]
[1744551068523,42.3159,128.99,128.94,0.05214716]
[1744551069332,42.3159,128.99,128.96,7.7569]
[1744551069634,34.56,128.99,128.97,7.7563]
[1744551070133,34.56,128.99,128.97,7.80942263]
[1744551071136,34.56,128.99,128.98,7.756]
[1744551071439,7.7544,129.01,128.98,7.756]
[1744551072036,618.5523,129.04,128.99,7.7553]
[1744551072231,34.54,129.03,128.99,7.7553]
[1744551072432,34.54,129.03,128.94,3.9977]
[1744551072634,34.54,129.03,129.0,0.05388916]
[1744551072834,34.54,129.03,128.94,3.9977]
[1744551073034,34.54,129.03,128.94,2.0011]
[1744551073229,7.7564,128.98,128.94,9.7592]
[1744551074039,41.4156,128.99,128.94,2.0011]
[1744551074239,0.05064149,128.97,128.95,0.05129632]
[1744551074841,0.05064149,128.97,128.95,7.80879632]
[1744551075242,0.05064149,128.97,128.95,0.05129632]
[1744551076231,0.05064149,128.97,128.95,7.80879632]
[1744551077145,0.05064149,128.97,128.96,7.7572]
[1744551084047,33.66,129.02,128.95,0.05129632]
[1744551084253,33.66,129.02,128.95,4.1932]
[1744551084454,33.66,129.02,129.0,7.7544]
[1744551084748,7.7531,129.03,129.0,7.7544]
[1744551085242,7.7531,129.03,129.0,7.81379595]
[1744551086550,33.66,129.04,129.0,0.05939595]
[1744551086741,33.66,129.07,129.0,0.05939595]
[1744551087251,7.7523,129.05,129.02,7.7533]
[1744551087750,7.7525,129.04,129.02,0.05208651]
[1744551088149,33.66,129.07,129.02,0.05208651]
[1744551088344,33.66,129.06,128.95,37.8532]
[1744551088550,34.6121,129.05,128.95,37.8532]
[1744551088844,7.7547,129.01,128.98,7.7557]
[1744551089243,33.66,129.04,128.95,37.8532]
[1744551089445,7.7539,129.02,128.96,2.0147]
[1744551089650,0.0516597,129.01,128.98,0.05399067]
[1744551089952,0.0516597,129.01,128.99,7.7553]
[1744551090252,7.8059597,129.01,128.98,0.05399067]
[1744551090452,0.0516597,129.01,128.98,0.05399067]
[1744551090752,33.64,129.0,128.98,0.05399067]
[1744551091247,33.64,129.0,128.98,7.80999067]
[1744551091754,0.0516597,129.01,128.98,0.05399067]
[1744551092356,33.64,129.03,129.02,7.7536]
[1744551092554,33.64,129.06,129.02,7.7536]
[1744551092755,7.7521,129.05,129.02,7.7536]
[1744551093354,7.7521,129.05,129.02,7.81318013]
[1744551094055,7.7527,129.04,129.02,0.05958013]
[1744551094248,33.64,129.06,129.02,0.05958013]
[1744551094451,7.753,129.03,129.02,0.05958013]
[1744551095651,7.7528,129.04,129.02,0.05958013]
[1744551096053,33.64,129.06,129.02,0.05958013]
[1744551097058,7.7523,129.05,129.02,7.81288013]
[1744551097253,33.64,129.06,129.02,7.81288013]
[1744551097557,41.3917,129.06,129.02,7.81288013]
[1744551097755,33.64,129.06,129.02,0.05958013]
[1744551098057,1.7536,129.05,128.95,4.1932]
[1744551098357,33.64,129.06,128.95,4.1932]
[1744551098758,33.64,129.06,129.01,7.7539]
[1744551099156,0.05259106,129.05,129.03,7.7529]
[1744551099362,0.05259106,129.05,129.02,0.05893235]
[1744551099761,7.7524,129.04,129.02,0.05893235]
[1744551099956,0.05259106,129.05,129.02,0.05893235]
[1744551100260,7.80489106,129.05,129.02,7.81233235]
[1744551100765,7.80489106,129.05,129.02,0.05893235]
[1744551100964,7.7527,129.04,129.02,0.05893235]
[1744551102367,7.753,129.03,129.02,0.05893235]
[1744551102569,0.05259106,129.05,128.95,4.1932]
[1744551102770,33.64,129.04,128.97,7.7562]
[1744551103069,7.7545,129.01,128.95,4.1932]
[1744551103269,40.8145,129.01,128.97,7.7563]
[1744551103571,40.8145,129.01,128.95,4.1932]
[1744551103770,0.05418054,129.0,128.98,0.05747841]
[1744551104471,0.05418054,129.0,128.98,7.81317841]
[1744551106072,0.05418054,129.0,128.99,7.7554]
[1744551109571,0.05418054,129.0,128.99,9.8673]
[1744551113979,0.05418054,129.0,128.99,7.7554]
[1744551114179,0.05418054,129.0,128.98,0.05747841]
[1744551114580,7.80908054,129.0,128.98,0.05747841]
[1744551115074,40.86908054,129.0,128.98,0.05747841]
[1744551115277,7.7554,128.99,128.98,0.05747841]
[1744551115469,33.11418054,129.0,128.92,1.9855]
[1744551115668,33.06,129.0,128.89,2.0365]
[1744551115874,3.9198,128.99,128.89,2.0365]
[1744551116078,3.9198,128.99,128.94,7.7584]
[1744551116380,33.06,129.0,128.89,393.0965]
[1744551116583,0.05126242,128.98,128.95,0.05516274]
[1744551117381,0.05126242,128.98,128.96,7.7572]
[1744551118681,0.05126242,128.98,128.95,0.05516274]
[1744551119279,7.7572,128.96,128.95,0.05516274]
[1744551119679,0.05126242,128.98,128.95,0.05516274]
[1744551119983,7.757,128.97,128.95,0.05516274]
[1744551120282,0.05126242,128.98,128.95,0.05516274]
[1744551120581,0.05126242,128.98,128.95,7.81266274]
[1744551120781,0.05126242,128.98,128.95,0.05516274]
[1744551120983,7.757,128.97,128.95,0.05516274]
[1744551121382,0.05126242,128.98,128.95,0.05516274]
[1744551121582,7.7572,128.96,128.95,0.05516274]
[1744551121782,40.8172,128.96,128.95,0.05516274]
[1744551123078,7.7591,128.93,128.89,2.0365]
[1744551123282,33.06,128.96,128.89,2.0365]
[1744551123482,33.06,128.96,128.89,9.7979]
[1744551123983,7.7596,128.93,128.89,9.7979]
[1744551124285,33.06,128.96,128.89,9.7979]
[1744551124878,33.06,128.96,128.89,2.0365]
[1744551125582,33.06,128.96,128.93,7.7586]
[1744551125987,33.06,128.96,128.89,2.0365]
[1744551126281,40.8177,128.96,128.93,7.7589]
[1744551127083,33.08,128.99,128.89,2.0365]
[1744551127283,33.08,128.99,128.89,360.0365]
[1744551127478,654.9939,129.02,128.93,0.0549078]
[1744551127677,647.24,129.02,128.93,33.1349078]
[1744551128085,7.7557,128.99,128.96,7.7569]
[1744551128688,7.7551,129.0,128.96,7.7569]
[1744551128883,647.24,129.02,128.96,7.7569]
[1744551129190,0.04929699,128.99,128.97,0.05895856]
[1744551130191,7.7569,128.97,128.93,7.7585]
[1744551130388,7.7569,128.97,128.9,37.2882]
[1744551130589,33.08,128.98,128.9,37.2882]
[1744551130789,33.08,128.98,128.97,7.7566]
[1744551130985,33.08,129.01,128.97,7.7566]
[1744551131290,0.05042075,129.0,128.98,7.80542049]
[1744551131587,33.08,129.04,128.95,33.08]
[1744551131784,0.05821965,129.0,128.98,0.05634538]
[1744551131984,0.05821965,129.0,128.99,7.7554]
[1744551132793,40.8327,129.04,129.01,7.7538]
[1744551132990,33.08,129.04,128.96,6.2242]
[1744551133691,40.8327,129.04,128.96,6.2242]
[1744551133892,0.05192039,129.01,128.99,0.05579995]
[1744551134693,0.05192039,129.01,129.0,7.7548]
[1744551135194,33.08,129.04,129.02,7.7534]
[1744551135393,33.08,129.04,128.96,6.2242]
[1744551135791,33.08,129.04,129.02,7.7536]
[1744551135995,33.08,129.04,128.96,6.2242]
[1744551136395,0.05435514,129.01,128.99,0.05748301]
[1744551137093,7.7548,129.0,128.99,0.05748301]
[1744551137396,40.3948,129.0,128.99,0.05748301]
[1744551138295,32.64,129.0,128.93,2.0728]
[1744551138494,32.64,129.0,128.95,7.7575]
[1744551138696,32.64,129.0,128.93,2.0728]
[1744551138893,32.64,129.0,128.94,1.9873]
[1744551139294,0.05832529,128.98,128.96,7.8165672]
[1744551139993,0.05832529,128.98,128.97,7.7566]
[1744551140397,32.64,129.03,128.96,0.0596672]
[1744551140695,7.7534,129.03,128.95,2.1717]
[1744551140896,32.64,129.04,128.95,2.1717]
[1744551141099,7.754,129.02,128.99,7.7551]
[1744551141597,7.81024465,129.02,128.99,7.80954699]
[1744551143096,0.05624465,129.02,128.99,0.05444699]
[1744551144198,7.7548,129.01,128.99,0.05444699]
[1744551144499,0.05624465,129.02,128.99,0.05444699]
[1744551144899,0.05624465,129.02,128.99,7.80944699]
[1744551145604,0.05624465,129.02,128.99,0.05444699]
[1744551145804,32.64,129.04,128.99,0.05444699]
[1744551146100,32.64,129.04,129.03,7.753]
[1744551146301,32.64,129.07,129.0,4.2647]
[1744551146601,7.7515,129.06,129.0,4.2647]
[1744551146904,32.64,129.07,129.0,4.2647]
[1744551147101,0.05799705,129.04,129.02,0.05961299]
[1744551147400,0.05799705,129.04,129.03,7.7525]
[1744551149207,0.05799705,129.04,129.02,0.05961299]
[1744551149402,7.81089705,129.04,129.02,0.05961299]
[1744551150204,7.753,129.03,129.02,0.05961299]
[1744551150707,0.05799705,129.04,129.02,0.05961299]
[1744551151007,32.64,129.03,129.02,0.05961299]
[1744551152905,40.393,129.03,129.02,0.05961299]
[1744551153110,32.64,129.03,129.02,7.81321299]
[1744551153506,0.05799705,129.04,129.03,7.753]
[1744551153707,0.05799705,129.04,129.02,0.05961299]
[1744551154111,0.05799705,129.04,129.03,7.753]
[1744551154513,7.7497,129.09,129.02,0.05961299]
[1744551154709,7.7497,129.09,129.02,4.1817]
[1744551154912,32.64,129.11,129.05,7.7515]
[1744551155107,7.7498,129.09,129.02,4.1817]
[1744551155313,32.64,129.14,129.08,7.7495]
[1744551155514,32.64,129.14,129.05,32.64]
[1744551155716,7.7479,129.12,129.1,0.05692349]
[1744551155914,32.64,129.14,129.1,0.05692349]
[1744551156312,7.7466,129.14,129.1,0.05692349]
[1744551156813,7.7466,129.14,129.1,7.80542349]
[1744551157012,7.7466,129.14,129.1,0.05692349]
[1744551157215,7.7466,129.14,129.1,7.80542349]
[1744551157717,7.7471,129.13,129.1,7.80542349]
[1744551157911,32.62,129.15,129.1,0.05692349]
[1744551158814,7.748,129.12,129.1,0.05692349]
[1744551159516,7.7471,129.13,129.1,0.05692349]
[1744551160916,7.7476,129.12,129.1,0.05692349]
[1744551161817,7.7472,129.13,129.1,0.05692349]
[1744551162619,7.7477,129.12,129.1,0.05692349]
[1744551162814,32.62,129.15,129.1,0.05692349]
[1744551163315,7.7473,129.13,129.1,0.05692349]
[1744551164218,7.7476,129.12,129.1,0.05692349]
[1744551165210,7.7473,129.13,129.1,0.05692349]
[1744551166119,7.7477,129.12,129.1,0.05692349]
[1744551166316,32.62,129.15,129.1,0.05692349]
[1744551166619,7.7481,129.12,129.1,0.05692349]
[1744551167422,32.62,129.15,129.1,0.05692349]
[1744551168022,7.7468,129.14,129.11,7.7481]
[1744551168617,7.745,129.17,129.13,7.7467]
[1744551168823,131.11135969,129.26,129.04,375.5494]
[1744551168824,32.66,129.19,129.08,32.66]
[1744551169020,32.66,129.18,129.14,0.05614978]
[1744551169321,40.4039,129.19,129.15,7.7458]
[1744551169523,40.4039,129.19,129.15,7.80098094]
[1744551169717,40.4039,129.19,129.15,7.80078094]
[1744551170022,32.66,129.19,129.15,0.05518094]
[1744551170324,32.66,129.19,129.16,7.7448]
[1744551170517,32.66,129.19,129.15,0.05518094]
[1744551170518,40.4038,129.19,129.15,0.05518094]
[1744551170722,32.66,129.23,129.15,0.05518094]
[1744551170918,32.66,129.23,129.17,7.7444]
[1744551171219,32.66,129.23,129.18,0.05177993]
[1744551171720,7.7423,129.21,129.18,0.05177993]
[1744551172526,7.7432,129.2,129.18,0.05177993]
[1744551173823,7.7425,129.21,129.18,0.05177993]
[1744551174425,7.743,129.2,129.18,0.05177993]
[1744551174621,32.66,129.23,129.18,0.05177993]
[1744551175923,7.7426,129.21,129.18,0.05177993]
[1744551176125,32.66,129.23,129.18,7.79567993]
[1744551176324,40.4013,129.23,129.18,0.05177993]
[1744551176526,32.66,129.26,129.18,0.05177993]
[1744551176725,32.66,129.26,129.2,7.7425]
[1744551176923,32.66,129.26,129.21,0.05313626]
[1744551177522,7.7413,129.23,129.21,0.05313626]
[1744551177720,32.66,129.26,129.21,0.05313626]
[1744551178022,7.7407,129.24,129.21,0.05313626]
[1744551178222,32.66,129.26,129.21,0.05313626]
[1744551180025,32.66,129.26,129.23,7.7409]
[1744551180729,32.66,129.26,129.21,0.05313626]
[1744551180925,1.208,129.29,129.21,0.05313626]
[1744551181130,1.208,129.29,129.18,32.66]
[1744551181329,7.739,129.27,129.24,0.04894968]
[1744551181631,32.64,129.28,129.24,0.04894968]
[1744551181928,7.7388,129.27,129.24,0.04894968]
[1744551182330,7.7388,129.27,129.24,7.78904968]
[1744551182730,7.7388,129.27,129.24,0.04894968]
[1744551183229,7.7398,129.25,129.24,0.04894968]
[1744551183429,1.0487,129.27,129.18,32.66]
[1744551183631,7.7413,129.23,129.18,32.66]
[1744551184533,7.7407,129.24,129.2,7.7425]
[1744551185129,7.7407,129.24,129.18,32.66]
[1744551185333,7.7411,129.23,129.18,32.66]
[1744551185831,1.0487,129.27,129.18,32.66]
[1744551186434,7.7405,129.24,129.21,7.7419]
[1744551186634,1.0487,129.27,129.18,32.66]
[1744551187631,7.7405,129.24,129.21,7.7419]
[1744551187934,1.0487,129.27,129.18,32.66]
[1744551188129,40.3782,129.28,129.24,7.7399]
[1744551188434,32.64,129.28,129.18,32.66]
[1744551188733,7.7395,129.26,129.22,7.7412]
[1744551188933,7.7395,129.26,129.18,32.66]
[1744551189433,7.7395,129.26,129.22,7.7411]
[1744551189635,32.64,129.28,129.18,32.66]
[1744551190134,7.7401,129.25,129.18,32.66]
[1744551190339,7.7401,129.25,129.21,7.7419]
[1744551190530,7.7401,129.25,129.18,32.66]
[1744551191437,7.7401,129.25,129.21,7.7418]
[1744551191737,0.05918831,129.24,129.22,0.05911634]
[1744551192638,0.05918831,129.24,129.22,7.80071634]
[1744551193032,0.05918831,129.24,129.22,0.05911634]
[1744551194037,0.05918831,129.24,129.23,7.741]
[1744551194936,0.05918831,129.24,129.22,0.05911634]
[1744551195234,7.741,129.23,129.22,0.05911634]
[1744551196735,0.05918831,129.24,129.22,7.80071634]
[1744551196932,0.05918831,129.24,129.22,0.05911634]
[1744551198039,0.05918831,129.24,129.23,7.741]
[1744551199941,0.05918831,129.24,129.22,7.80061634]
[1744551201537,0.05918831,129.24,129.23,7.741]
[1744551201740,32.58,129.28,129.22,0.05911634]
[1744551201939,32.58,129.28,129.22,32.63911634]
[1744551202140,32.58,129.32,129.23,6.1914]
[1744551202639,7.7363,129.31,129.23,6.1914]
[1744551202841,7.7363,129.31,129.26,0.04916765]
[1744551203041,7.7363,129.31,129.28,7.7377]
[1744551203842,7.7363,129.31,129.29,7.7374]
[1744551204036,40.3159,129.32,129.29,7.7374]
[1744551204237,40.3159,129.32,129.29,0.04910862]
[1744551204437,32.58,129.32,129.29,0.04910862]
[1744551205037,7.7368,129.3,129.29,0.04910862]
[1744551207245,32.58,129.32,129.23,6.1914]
[1744551208339,7.738,129.28,129.26,0.05301243]
[1744551208545,32.56,129.28,129.26,0.05301243]
[1744551209247,7.7386,129.27,129.26,0.05301243]
[1744551213947,32.56,129.28,129.26,0.05301243]
[1744551214148,0.05047749,129.29,129.26,0.05301243]
[1744551215150,7.78797749,129.29,129.26,7.79191243]
[1744551219051,0.05047749,129.29,129.26,0.05301243]
[1744551219554,7.7413,129.23,129.19,7.743]
[1744551219754,7.7413,129.23,129.16,32.56]
[1744551219953,32.56,129.24,129.16,32.56]
[1744551220145,7.7411,129.23,129.19,7.7429]
[1744551220658,0.05172082,129.22,129.2,7.79297525]
[1744551221452,0.05172082,129.22,129.21,7.7422]
[1744551221761,0.05172082,129.22,129.2,0.05017525]
[1744551222662,0.05172082,129.22,129.2,7.79257525]
[1744551222862,0.05172082,129.22,129.2,0.05017525]
[1744551223263,0.05172082,129.22,129.21,7.7422]
[1744551224576,2.9066,129.29,129.23,7.7406]
[1744551224770,31.98,129.26,129.23,7.7406]
[1744551225776,32.0317691,129.26,129.23,7.79041205]
[1744551228070,0.0517691,129.26,129.23,0.04981205]
[1744551228472,0.0517691,129.26,129.25,7.7398]
[1744551228974,0.0517691,129.26,129.23,0.04981205]
[1744551229376,0.0517691,129.26,129.24,7.7399]
[1744551229576,0.0517691,129.26,129.23,0.04981205]
[1744551230278,7.7913691,129.26,129.23,0.04981205]
[1744551230682,0.0517691,129.26,129.23,0.04981205]